[Event "Titled Tuesday Blitz June 28 Late 2022"]
[White "Steinberg, Nitzan"]
[Black "Plazuelo Pascual, Juan"]
[WhiteFideId "2801795"]
[BlackFideId "32059566"]
[WhiteElo "2471"]
[BlackElo "2359"]
[Result "1-0"]
[Round "06"]
[TimeControl "180+1"]
[Date "2022.06.28"]
[WhiteClock "0:00:07"]
[BlackClock "0:00:08"]

1. Nf3 {[%clk 0:03:00]}  d5 {[%clk 0:02:59]} 2. d4 {[%clk 0:03:01]}  Nf6 {[%clk 0:02:58]} 3. Bf4 {[%clk 0:03:01]}  c5 {[%clk 0:02:58]} 4. e3 {[%clk 0:03:01]}  Nc6 {[%clk 0:02:58]} 5. c3 {[%clk 0:02:58]}  Nh5 {[%clk 0:02:56]} 6. Be5 {[%clk 0:02:52]}  f6 {[%clk 0:02:47]} 7. Bg3 {[%clk 0:02:51]}  e6 {[%clk 0:02:41]} 8. Bd3 {[%clk 0:02:46]}  g6 {[%clk 0:02:32]} 9. Nbd2 {[%clk 0:02:46]}  Nxg3 {[%clk 0:02:30]} 10. hxg3 {[%clk 0:02:46]}  Kf7 {[%clk 0:02:29]} 11. a3 {[%clk 0:02:28]}  cxd4 {[%clk 0:02:28]} 12. cxd4 {[%clk 0:02:24]}  Bd7 {[%clk 0:02:21]} 13. b4 {[%clk 0:02:19]}  Rc8 {[%clk 0:01:54]} 14. g4 {[%clk 0:02:08]}  Bg7 {[%clk 0:01:50]} 15. e4 {[%clk 0:02:01]}  e5 {[%clk 0:01:25]} 16. dxe5 {[%clk 0:01:53]}  Bxg4 {[%clk 0:01:25]} 17. exd5 {[%clk 0:01:45]}  Bxf3 {[%clk 0:01:24]} 18. e6+ {[%clk 0:01:43]}  Ke7 {[%clk 0:01:16]} 19. Nxf3 {[%clk 0:01:20]}  Qxd5 {[%clk 0:01:15]} 20. O-O {[%clk 0:01:04]}  Rhd8 {[%clk 0:01:15]} 21. Bc2 {[%clk 0:00:54]}  Qxd1 {[%clk 0:01:01]} 22. Bxd1 {[%clk 0:00:52]}  f5 {[%clk 0:00:53]} 23. Ra2 {[%clk 0:00:47]}  Kxe6 {[%clk 0:00:50]} 24. Ng5+ {[%clk 0:00:44]}  Kd7 {[%clk 0:00:36]} 25. Rd2+ {[%clk 0:00:35]}  Nd4 {[%clk 0:00:26]} 26. Re1 {[%clk 0:00:35]}  Kc7 {[%clk 0:00:14]} 27. Re7+ {[%clk 0:00:31]}  Rd7 {[%clk 0:00:14]} 28. Rxd7+ {[%clk 0:00:08]}  Kxd7 {[%clk 0:00:14]} 29. Nf3 {[%clk 0:00:09]}  Rc4 {[%clk 0:00:06]} 30. Be2 {[%clk 0:00:09]}  Rc1+ {[%clk 0:00:04]} 31. Kh2 {[%clk 0:00:10]}  Kc7 {[%clk 0:00:01]} 32. Nxd4 {[%clk 0:00:10]}  Bh6 {[%clk 0:00:02]} 33. Rc2+ {[%clk 0:00:09]}  Rxc2 {[%clk 0:00:02]} 34. Nxc2 {[%clk 0:00:10]}  Kd6 {[%clk 0:00:03]} 35. Bf3 {[%clk 0:00:10]}  b6 {[%clk 0:00:03]} 36. Nd4 {[%clk 0:00:09]}  Bc1 {[%clk 0:00:03]} 37. g3 {[%clk 0:00:05]}  a5 {[%clk 0:00:02]} 38. bxa5 {[%clk 0:00:05]}  bxa5 {[%clk 0:00:03]} 39. a4 {[%clk 0:00:05]}  Kc5 {[%clk 0:00:04]} 40. Ne6+ {[%clk 0:00:05]}  Kc4 {[%clk 0:00:04]} 41. Bc6 {[%clk 0:00:05]}  Bd2 {[%clk 0:00:03]} 42. Nf8 {[%clk 0:00:05]}  g5 {[%clk 0:00:03]} 43. Nxh7 {[%clk 0:00:05]}  f4 {[%clk 0:00:04]} 44. g4 {[%clk 0:00:05]}  Kc5 {[%clk 0:00:04]} 45. Bf3 {[%clk 0:00:05]}  Be1 {[%clk 0:00:05]} 46. Kg2 {[%clk 0:00:05]}  Kd4 {[%clk 0:00:05]} 47. Nxg5 {[%clk 0:00:04]}  Bd2 {[%clk 0:00:06]} 48. Nh3 {[%clk 0:00:04]}  Kc5 {[%clk 0:00:07]} 49. g5 {[%clk 0:00:05]}  Kb4 {[%clk 0:00:08]} 50. Bd1 {[%clk 0:00:06]}  Kc3 {[%clk 0:00:08]} 51. Kf3 {[%clk 0:00:07]} 1-0


[Site "https://www.chess.com"]

[Event "Titled Tuesday Blitz June 28 Late 2022"]
[White "Svane, Rasmus"]
[Black "Domingo Nunez, Ruben"]
[WhiteFideId "4657101"]
[BlackFideId "22245570"]
[WhiteElo "2674"]
[BlackElo "2376"]
[Result "1-0"]
[Round "06"]
[TimeControl "180+1"]
[Date "2022.06.28"]
[WhiteClock "0:00:58"]
[BlackClock "0:00:15"]

1. Nf3 {[%clk 0:03:00]}  g6 {[%clk 0:02:58]} 2. e4 {[%clk 0:03:01]}  Bg7 {[%clk 0:02:58]} 3. d4 {[%clk 0:03:01]}  c6 {[%clk 0:02:59]} 4. c3 {[%clk 0:03:02]}  d5 {[%clk 0:03:00]} 5. exd5 {[%clk 0:03:03]}  cxd5 {[%clk 0:03:00]} 6. Bd3 {[%clk 0:03:04]}  Nc6 {[%clk 0:03:00]} 7. O-O {[%clk 0:03:04]}  Bf5 {[%clk 0:02:55]} 8. Re1 {[%clk 0:03:03]}  e6 {[%clk 0:02:54]} 9. Bf1 {[%clk 0:03:00]}  Nf6 {[%clk 0:02:51]} 10. h3 {[%clk 0:02:58]}  O-O {[%clk 0:02:51]} 11. Bf4 {[%clk 0:02:58]}  Qb6 {[%clk 0:02:49]} 12. Qb3 {[%clk 0:02:53]}  Na5 {[%clk 0:02:45]} 13. Qa3 {[%clk 0:02:53]}  Rfd8 {[%clk 0:02:41]} 14. Nbd2 {[%clk 0:02:50]}  Bc2 {[%clk 0:02:29]} 15. Rac1 {[%clk 0:02:45]}  Bf5 {[%clk 0:02:23]} 16. g4 {[%clk 0:02:44]}  Be4 {[%clk 0:02:20]} 17. Ng5 {[%clk 0:02:40]}  Bf8 {[%clk 0:02:04]} 18. Qa4 {[%clk 0:02:33]}  Nc6 {[%clk 0:01:55]} 19. b4 {[%clk 0:02:28]}  Rac8 {[%clk 0:01:36]} 20. Ngxe4 {[%clk 0:02:14]}  dxe4 {[%clk 0:01:33]} 21. Nxe4 {[%clk 0:02:15]}  Nd5 {[%clk 0:01:09]} 22. Bg5 {[%clk 0:02:11]}  Be7 {[%clk 0:01:07]} 23. Bxe7 {[%clk 0:02:06]}  Ncxe7 {[%clk 0:01:08]} 24. Qb3 {[%clk 0:01:58]}  Nf4 {[%clk 0:01:08]} 25. Rcd1 {[%clk 0:01:49]}  h5 {[%clk 0:01:06]} 26. Qb2 {[%clk 0:01:29]}  hxg4 {[%clk 0:00:53]} 27. hxg4 {[%clk 0:01:30]}  Kg7 {[%clk 0:00:53]} 28. c4 {[%clk 0:01:27]}  e5 {[%clk 0:00:20]} 29. d5 {[%clk 0:01:23]}  f6 {[%clk 0:00:20]} 30. d6 {[%clk 0:01:24]}  Nc6 {[%clk 0:00:20]} 31. c5 {[%clk 0:01:07]}  Qxb4 {[%clk 0:00:20]} 32. Qxb4 {[%clk 0:01:07]}  Nxb4 {[%clk 0:00:21]} 33. Rb1 {[%clk 0:01:07]}  Nbd3 {[%clk 0:00:19]} 34. Rxb7+ {[%clk 0:01:06]}  Kh6 {[%clk 0:00:18]} 35. Bxd3 {[%clk 0:01:07]}  Nxd3 {[%clk 0:00:19]} 36. Re3 {[%clk 0:01:05]}  Nf4 {[%clk 0:00:17]} 37. g5+ {[%clk 0:01:01]}  fxg5 {[%clk 0:00:16]} 38. Nf6 {[%clk 0:01:01]}  g4 {[%clk 0:00:16]} 39. Rxe5 {[%clk 0:00:59]}  Nd3 {[%clk 0:00:15]} 40. Rh7# {[%clk 0:00:58]} 1-0


[Site "https://www.chess.com"]

[Event "Titled Tuesday Blitz June 28 Late 2022"]
[White "Thiel, Thomas"]
[Black "Urbina Perez, Juan Antonio"]
[WhiteFideId "4615964"]
[BlackFideId "2217368"]
[WhiteElo "2244"]
[BlackElo "2192"]
[Result "1-0"]
[Round "06"]
[TimeControl "180+1"]
[Date "2022.06.29"]
[WhiteClock "0:00:29"]
[BlackClock "0:00:01"]

1. e4 {[%clk 0:03:00]}  e5 {[%clk 0:02:56]} 2. Nf3 {[%clk 0:02:58]}  Nf6 {[%clk 0:02:56]} 3. Nxe5 {[%clk 0:02:55]}  d6 {[%clk 0:02:56]} 4. Nf3 {[%clk 0:02:54]}  Nxe4 {[%clk 0:02:57]} 5. d4 {[%clk 0:02:54]}  d5 {[%clk 0:02:57]} 6. Bd3 {[%clk 0:02:53]}  Bd6 {[%clk 0:02:57]} 7. O-O {[%clk 0:02:51]}  O-O {[%clk 0:02:58]} 8. c4 {[%clk 0:02:50]}  c6 {[%clk 0:02:58]} 9. Nc3 {[%clk 0:02:49]}  Nxc3 {[%clk 0:02:59]} 10. bxc3 {[%clk 0:02:49]}  dxc4 {[%clk 0:02:59]} 11. Bxc4 {[%clk 0:02:48]}  Bf5 {[%clk 0:02:59]} 12. Re1 {[%clk 0:02:42]}  Nd7 {[%clk 0:02:57]} 13. h3 {[%clk 0:02:40]}  Qa5 {[%clk 0:02:53]} 14. Qb3 {[%clk 0:02:25]}  b5 {[%clk 0:02:50]} 15. Bf1 {[%clk 0:02:22]}  Rfe8 {[%clk 0:02:49]} 16. Bd2 {[%clk 0:02:22]}  Qa3 {[%clk 0:02:43]} 17. Qxa3 {[%clk 0:02:15]}  Bxa3 {[%clk 0:02:44]} 18. c4 {[%clk 0:02:14]}  a6 {[%clk 0:02:41]} 19. Rxe8+ {[%clk 0:02:05]}  Rxe8 {[%clk 0:02:40]} 20. Bc1 {[%clk 0:01:54]}  Bb4 {[%clk 0:02:29]} 21. Bb2 {[%clk 0:01:52]}  Nb6 {[%clk 0:02:23]} 22. cxb5 {[%clk 0:01:51]}  axb5 {[%clk 0:02:24]} 23. Rc1 {[%clk 0:01:48]}  Na4 {[%clk 0:02:19]} 24. Ba1 {[%clk 0:01:44]}  Be4 {[%clk 0:02:20]} 25. Ne5 {[%clk 0:01:40]}  Bd2 {[%clk 0:02:10]} 26. Rd1 {[%clk 0:01:36]}  Bb4 {[%clk 0:02:01]} 27. Rc1 {[%clk 0:01:34]}  Re6 {[%clk 0:01:47]} 28. Bd3 {[%clk 0:01:25]}  Bd5 {[%clk 0:01:40]} 29. Bf5 {[%clk 0:01:20]}  Rf6 {[%clk 0:01:33]} 30. Bg4 {[%clk 0:01:17]}  g6 {[%clk 0:01:32]} 31. Bf3 {[%clk 0:01:16]}  Re6 {[%clk 0:01:02]} 32. Nxc6 {[%clk 0:01:09]}  Bxf3 {[%clk 0:00:35]} 33. Nxb4 {[%clk 0:01:08]}  Bb7 {[%clk 0:00:29]} 34. d5 {[%clk 0:01:08]}  Re2 {[%clk 0:00:26]} 35. Bf6 {[%clk 0:01:02]}  Re8 {[%clk 0:00:19]} 36. Rc7 {[%clk 0:01:00]}  Bc8 {[%clk 0:00:18]} 37. d6 {[%clk 0:01:00]}  Nb6 {[%clk 0:00:17]} 38. Bd4 {[%clk 0:00:56]}  Nd7 {[%clk 0:00:16]} 39. Nd5 {[%clk 0:00:55]}  f5 {[%clk 0:00:16]} 40. Rxd7 {[%clk 0:00:53]}  Bxd7 {[%clk 0:00:15]} 41. Nf6+ {[%clk 0:00:54]}  Kf7 {[%clk 0:00:15]} 42. Nxd7 {[%clk 0:00:53]}  Rd8 {[%clk 0:00:15]} 43. Ne5+ {[%clk 0:00:54]}  Ke6 {[%clk 0:00:15]} 44. d7 {[%clk 0:00:54]}  b4 {[%clk 0:00:14]} 45. Kf1 {[%clk 0:00:52]}  Ra8 {[%clk 0:00:12]} 46. Ke2 {[%clk 0:00:51]}  Ke7 {[%clk 0:00:10]} 47. Kd3 {[%clk 0:00:49]}  Rxa2 {[%clk 0:00:04]} 48. Bc5+ {[%clk 0:00:49]}  Kd8 {[%clk 0:00:04]} 49. Bb6+ {[%clk 0:00:49]}  Ke7 {[%clk 0:00:02]} 50. d8=Q+ {[%clk 0:00:49]}  Ke6 {[%clk 0:00:03]} 51. Qd4 {[%clk 0:00:47]}  Ra3+ {[%clk 0:00:03]} 52. Ke2 {[%clk 0:00:45]}  b3 {[%clk 0:00:02]} 53. Bc7 {[%clk 0:00:40]}  Ra2+ {[%clk 0:00:03]} 54. Kf3 {[%clk 0:00:38]}  Ra6 {[%clk 0:00:02]} 55. Qd7+ {[%clk 0:00:36]}  Kf6 {[%clk 0:00:02]} 56. Qd5 {[%clk 0:00:32]}  Kg5 {[%clk 0:00:03]} 57. Qxb3 {[%clk 0:00:31]}  h5 {[%clk 0:00:01]} 58. Qe3+ {[%clk 0:00:30]}  Kf6 {[%clk 0:00:01]} 59. h4 {[%clk 0:00:29]} 1-0


[Site "https://www.chess.com"]

[Event "Titled Tuesday Blitz June 28 Late 2022"]
[White "Tologon tegin, Semetei"]
[Black "Zhigalko, Sergei"]
[WhiteFideId "13800574"]
[BlackFideId "13502956"]
[WhiteElo "2174"]
[BlackElo "2662"]
[Result "0-1"]
[Round "06"]
[TimeControl "180+1"]
[Date "2022.06.28"]
[WhiteClock "0:00:17"]
[BlackClock "0:00:15"]

1. Nf3 {[%clk 0:02:56]}  d5 {[%clk 0:03:00]} 2. g3 {[%clk 0:02:55]}  c6 {[%clk 0:03:00]} 3. Bg2 {[%clk 0:02:55]}  Bg4 {[%clk 0:03:01]} 4. d3 {[%clk 0:02:47]}  Nd7 {[%clk 0:03:00]} 5. O-O {[%clk 0:02:43]}  e6 {[%clk 0:03:00]} 6. e4 {[%clk 0:02:43]}  Bd6 {[%clk 0:02:59]} 7. Qe1 {[%clk 0:02:39]}  Ne7 {[%clk 0:02:59]} 8. Nbd2 {[%clk 0:02:34]}  O-O {[%clk 0:02:58]} 9. h3 {[%clk 0:02:33]}  Bh5 {[%clk 0:02:58]} 10. b3 {[%clk 0:02:32]}  a5 {[%clk 0:02:58]} 11. a3 {[%clk 0:02:29]}  Re8 {[%clk 0:02:56]} 12. Bb2 {[%clk 0:02:28]}  f6 {[%clk 0:02:45]} 13. exd5 {[%clk 0:02:08]}  Nxd5 {[%clk 0:02:44]} 14. c4 {[%clk 0:02:07]}  Nc7 {[%clk 0:02:41]} 15. d4 {[%clk 0:02:07]}  e5 {[%clk 0:02:38]} 16. dxe5 {[%clk 0:01:53]}  Nxe5 {[%clk 0:02:37]} 17. Nxe5 {[%clk 0:01:49]}  Bxe5 {[%clk 0:02:38]} 18. Bxe5 {[%clk 0:01:49]}  Rxe5 {[%clk 0:02:38]} 19. Qc1 {[%clk 0:01:44]}  Qd3 {[%clk 0:02:34]} 20. g4 {[%clk 0:01:37]}  Bg6 {[%clk 0:02:32]} 21. Nf3 {[%clk 0:01:20]}  Ree8 {[%clk 0:01:55]} 22. Rb1 {[%clk 0:00:54]}  Qxb1 {[%clk 0:01:50]} 23. Qxb1 {[%clk 0:00:54]}  Bxb1 {[%clk 0:01:50]} 24. Rxb1 {[%clk 0:00:55]}  Ne6 {[%clk 0:01:46]} 25. Bf1 {[%clk 0:00:44]}  Rad8 {[%clk 0:01:42]} 26. b4 {[%clk 0:00:43]}  axb4 {[%clk 0:01:43]} 27. axb4 {[%clk 0:00:42]}  Nd4 {[%clk 0:01:42]} 28. Nxd4 {[%clk 0:00:38]}  Rxd4 {[%clk 0:01:43]} 29. b5 {[%clk 0:00:36]}  c5 {[%clk 0:01:35]} 30. Ra1 {[%clk 0:00:36]}  b6 {[%clk 0:01:30]} 31. Kg2 {[%clk 0:00:34]}  Kf7 {[%clk 0:01:23]} 32. Kg3 {[%clk 0:00:23]}  g5 {[%clk 0:00:50]} 33. Bg2 {[%clk 0:00:20]}  Rd3+ {[%clk 0:00:48]} 34. Kh2 {[%clk 0:00:20]}  Re2 {[%clk 0:00:46]} 35. Kg1 {[%clk 0:00:20]}  Rdd2 {[%clk 0:00:43]} 36. Bd5+ {[%clk 0:00:18]}  Ke7 {[%clk 0:00:36]} 37. Ra7+ {[%clk 0:00:18]}  Kd6 {[%clk 0:00:27]} 38. Rb7 {[%clk 0:00:18]}  Rxf2 {[%clk 0:00:10]} 39. Rxb6+ {[%clk 0:00:19]}  Ke5 {[%clk 0:00:10]} 40. Re6+ {[%clk 0:00:19]}  Kd4 {[%clk 0:00:10]} 41. b6 {[%clk 0:00:19]}  Rfe2 {[%clk 0:00:08]} 42. Rxf6 {[%clk 0:00:14]}  Re1+ {[%clk 0:00:04]} 43. Rf1 {[%clk 0:00:14]}  Rxf1+ {[%clk 0:00:05]} 44. Kxf1 {[%clk 0:00:15]}  Rb2 {[%clk 0:00:06]} 45. b7 {[%clk 0:00:15]}  h6 {[%clk 0:00:05]} 46. Kg1 {[%clk 0:00:14]}  Ke5 {[%clk 0:00:02]} 47. Kf1 {[%clk 0:00:14]}  Kf4 {[%clk 0:00:02]} 48. Ke1 {[%clk 0:00:13]}  Kg3 {[%clk 0:00:02]} 49. Kd1 {[%clk 0:00:13]}  Kxh3 {[%clk 0:00:02]} 50. Kc1 {[%clk 0:00:14]}  Rb6 {[%clk 0:00:02]} 51. Kd2 {[%clk 0:00:14]}  Kxg4 {[%clk 0:00:03]} 52. Ke3 {[%clk 0:00:14]}  h5 {[%clk 0:00:02]} 53. Ke4 {[%clk 0:00:15]}  h4 {[%clk 0:00:02]} 54. Ke5 {[%clk 0:00:15]}  h3 {[%clk 0:00:02]} 55. Be4 {[%clk 0:00:10]}  Kg3 {[%clk 0:00:03]} 56. Kd5 {[%clk 0:00:11]}  Rxb7 {[%clk 0:00:03]} 57. Kxc5 {[%clk 0:00:11]}  Re7 {[%clk 0:00:03]} 58. Bd5 {[%clk 0:00:10]}  Re1 {[%clk 0:00:04]} 59. Kd6 {[%clk 0:00:11]}  h2 {[%clk 0:00:04]} 60. c5 {[%clk 0:00:12]}  h1=Q {[%clk 0:00:05]} 61. Bxh1 {[%clk 0:00:12]}  Rxh1 {[%clk 0:00:06]} 62. c6 {[%clk 0:00:12]}  Rc1 {[%clk 0:00:07]} 63. c7 {[%clk 0:00:11]}  g4 {[%clk 0:00:08]} 64. Kd7 {[%clk 0:00:12]}  Kf3 {[%clk 0:00:08]} 65. c8=Q {[%clk 0:00:12]}  Rxc8 {[%clk 0:00:07]} 66. Kxc8 {[%clk 0:00:13]}  g3 {[%clk 0:00:08]} 67. Kd7 {[%clk 0:00:14]}  g2 {[%clk 0:00:09]} 68. Kc6 {[%clk 0:00:14]}  g1=Q {[%clk 0:00:09]} 69. Kd6 {[%clk 0:00:15]}  Qg4 {[%clk 0:00:10]} 70. Kc5 {[%clk 0:00:16]}  Qe4 {[%clk 0:00:11]} 71. Kd6 {[%clk 0:00:15]}  Kf4 {[%clk 0:00:12]} 72. Kd7 {[%clk 0:00:15]}  Qe5 {[%clk 0:00:13]} 73. Kd8 {[%clk 0:00:16]}  Qg7 {[%clk 0:00:12]} 74. Kc8 {[%clk 0:00:16]}  Ke5 {[%clk 0:00:13]} 75. Kb8 {[%clk 0:00:17]}  Kd6 {[%clk 0:00:14]} 76. Ka8 {[%clk 0:00:17]}  Kc6 {[%clk 0:00:15]} 77. Kb8 {[%clk 0:00:17]}  Qb7# {[%clk 0:00:15]} 0-1


[Site "https://www.chess.com"]

[Event "Titled Tuesday Blitz June 28 Late 2022"]
[White "Tristan, Leonardo"]
[Black "Vovk, Orest"]
[WhiteFideId "113816"]
[BlackFideId "14113490"]
[WhiteElo "2404"]
[BlackElo "2203"]
[Result "1-0"]
[Round "06"]
[TimeControl "180+1"]
[Date "2022.06.29"]
[WhiteClock "0:00:56"]
[BlackClock "0:00:45"]

1. d4 {[%clk 0:03:00]}  h6 {[%clk 0:02:57]} 2. e4 {[%clk 0:02:59]}  g5 {[%clk 0:02:56]} 3. h4 {[%clk 0:02:57]}  Bg7 {[%clk 0:02:56]} 4. c3 {[%clk 0:02:53]}  g4 {[%clk 0:02:57]} 5. Qxg4 {[%clk 0:02:51]}  Bf8 {[%clk 0:02:56]} 6. Qd1 {[%clk 0:02:39]}  d5 {[%clk 0:02:56]} 7. e5 {[%clk 0:02:39]}  c5 {[%clk 0:02:56]} 8. dxc5 {[%clk 0:02:36]}  Nc6 {[%clk 0:02:56]} 9. Nf3 {[%clk 0:02:35]}  Bg4 {[%clk 0:02:56]} 10. Bf4 {[%clk 0:02:35]}  e6 {[%clk 0:02:54]} 11. b4 {[%clk 0:02:25]}  Nge7 {[%clk 0:02:48]} 12. Bb5 {[%clk 0:02:22]}  a6 {[%clk 0:02:45]} 13. Ba4 {[%clk 0:02:21]}  Ng6 {[%clk 0:02:37]} 14. Bg3 {[%clk 0:02:21]}  Bg7 {[%clk 0:02:37]} 15. Qd4 {[%clk 0:02:00]}  h5 {[%clk 0:02:15]} 16. Nbd2 {[%clk 0:01:58]}  Kf8 {[%clk 0:02:13]} 17. Bxc6 {[%clk 0:01:56]}  bxc6 {[%clk 0:02:13]} 18. O-O {[%clk 0:01:36]}  Ne7 {[%clk 0:02:07]} 19. a4 {[%clk 0:01:20]}  Nf5 {[%clk 0:02:06]} 20. Qd3 {[%clk 0:01:19]}  Nxg3 {[%clk 0:02:04]} 21. fxg3 {[%clk 0:01:18]}  Bh6 {[%clk 0:02:03]} 22. Nd4 {[%clk 0:01:15]}  Qd7 {[%clk 0:01:41]} 23. N2f3 {[%clk 0:01:12]}  Kg7 {[%clk 0:01:34]} 24. Ng5 {[%clk 0:01:11]}  Bxg5 {[%clk 0:01:33]} 25. hxg5 {[%clk 0:01:11]}  Qe7 {[%clk 0:01:20]} 26. Rf6 {[%clk 0:01:10]}  Rac8 {[%clk 0:01:05]} 27. Raf1 {[%clk 0:01:08]}  Kg8 {[%clk 0:00:55]} 28. g6 {[%clk 0:01:03]}  Bf5 {[%clk 0:00:49]} 29. gxf7+ {[%clk 0:00:57]}  Kf8 {[%clk 0:00:46]} 30. R1xf5 {[%clk 0:00:56]}  exf5 {[%clk 0:00:46]} 31. Ne6+ {[%clk 0:00:56]}  Qxe6 {[%clk 0:00:44]} 32. Rxe6 {[%clk 0:00:57]}  Kxf7 {[%clk 0:00:45]} 33. Qxf5+ {[%clk 0:00:56]} 1-0


[Site "https://www.chess.com"]

[Event "Titled Tuesday Blitz June 28 Late 2022"]
[White "Vidonyak, Roman"]
[Black "Souleidis, Georgios"]
[WhiteFideId "14100622"]
[BlackFideId "4206827"]
[WhiteElo "2350"]
[BlackElo "2401"]
[Result "0-1"]
[Round "06"]
[TimeControl "180+1"]
[Date "2022.06.29"]
[WhiteClock "0:00:04"]
[BlackClock "0:00:12"]

1. d4 {[%clk 0:02:58]}  Nf6 {[%clk 0:02:59]} 2. c4 {[%clk 0:02:58]}  g6 {[%clk 0:02:59]} 3. h4 {[%clk 0:02:57]}  c5 {[%clk 0:02:55]} 4. d5 {[%clk 0:02:57]}  d6 {[%clk 0:02:55]} 5. Nc3 {[%clk 0:02:56]}  e6 {[%clk 0:02:55]} 6. e4 {[%clk 0:02:56]}  exd5 {[%clk 0:02:54]} 7. exd5 {[%clk 0:02:57]}  Bg7 {[%clk 0:02:54]} 8. Be2 {[%clk 0:02:58]}  O-O {[%clk 0:02:54]} 9. h5 {[%clk 0:02:59]}  Re8 {[%clk 0:02:51]} 10. h6 {[%clk 0:02:58]}  Bh8 {[%clk 0:02:51]} 11. Bg5 {[%clk 0:02:58]}  a6 {[%clk 0:02:50]} 12. Kf1 {[%clk 0:02:56]}  Qb6 {[%clk 0:02:43]} 13. b3 {[%clk 0:02:33]}  Nbd7 {[%clk 0:02:37]} 14. Nf3 {[%clk 0:02:13]}  Ne5 {[%clk 0:02:29]} 15. Nxe5 {[%clk 0:01:51]}  Rxe5 {[%clk 0:02:29]} 16. Bf4 {[%clk 0:01:50]}  Re8 {[%clk 0:02:17]} 17. g4 {[%clk 0:01:37]}  Ne4 {[%clk 0:01:54]} 18. Nxe4 {[%clk 0:01:35]}  Rxe4 {[%clk 0:01:55]} 19. Be3 {[%clk 0:01:30]}  Bd7 {[%clk 0:01:51]} 20. Kg2 {[%clk 0:01:23]}  Rae8 {[%clk 0:01:50]} 21. Rc1 {[%clk 0:01:19]}  Qc7 {[%clk 0:01:42]} 22. Bf3 {[%clk 0:01:16]}  R4e7 {[%clk 0:01:22]} 23. Qd2 {[%clk 0:01:04]}  Qc8 {[%clk 0:01:20]} 24. g5 {[%clk 0:00:47]}  Qd8 {[%clk 0:01:14]} 25. Bf4 {[%clk 0:00:41]}  Be5 {[%clk 0:01:14]} 26. Be3 {[%clk 0:00:33]}  Bd4 {[%clk 0:00:54]} 27. Bf4 {[%clk 0:00:30]}  Re5 {[%clk 0:00:50]} 28. Rhe1 {[%clk 0:00:19]}  b5 {[%clk 0:00:18]} 29. Bxe5 {[%clk 0:00:15]}  Bxe5 {[%clk 0:00:15]} 30. cxb5 {[%clk 0:00:14]}  axb5 {[%clk 0:00:14]} 31. Re2 {[%clk 0:00:09]}  f6 {[%clk 0:00:13]} 32. gxf6 {[%clk 0:00:04]}  Qxf6 {[%clk 0:00:13]} 33. Kg1 {[%clk 0:00:03]}  Qh4 {[%clk 0:00:12]} 34. Rce1 {[%clk 0:00:03]}  Qh2+ {[%clk 0:00:11]} 35. Kf1 {[%clk 0:00:04]}  Bh3+ {[%clk 0:00:12]} 0-1


[Site "https://www.chess.com"]

[Event "Titled Tuesday Blitz June 28 Late 2022"]
[White "Voege, Tobias"]
[Black "Khan, Taffin"]
[WhiteFideId "1270513"]
[BlackFideId "19700024"]
[WhiteElo "2379"]
[BlackElo "1999"]
[Result "1-0"]
[Round "06"]
[TimeControl "180+1"]
[Date "2022.06.29"]
[WhiteClock "0:00:31"]
[BlackClock "0:00:02"]

1. e4 {[%clk 0:03:00]}  c5 {[%clk 0:02:58]} 2. Nf3 {[%clk 0:03:00]}  e6 {[%clk 0:02:57]} 3. c3 {[%clk 0:03:00]}  d5 {[%clk 0:02:52]} 4. exd5 {[%clk 0:02:57]}  Qxd5 {[%clk 0:02:52]} 5. d4 {[%clk 0:02:56]}  Nf6 {[%clk 0:02:51]} 6. Be2 {[%clk 0:02:52]}  Be7 {[%clk 0:02:51]} 7. O-O {[%clk 0:02:51]}  Nc6 {[%clk 0:02:50]} 8. c4 {[%clk 0:02:48]}  Qd8 {[%clk 0:02:36]} 9. dxc5 {[%clk 0:02:44]}  Bxc5 {[%clk 0:02:35]} 10. Qxd8+ {[%clk 0:02:43]}  Nxd8 {[%clk 0:02:35]} 11. Nc3 {[%clk 0:02:41]}  a6 {[%clk 0:02:35]} 12. a3 {[%clk 0:02:39]}  Bd7 {[%clk 0:02:30]} 13. b4 {[%clk 0:02:39]}  Be7 {[%clk 0:02:28]} 14. Bb2 {[%clk 0:02:37]}  O-O {[%clk 0:02:11]} 15. Rfd1 {[%clk 0:02:34]}  Be8 {[%clk 0:02:08]} 16. c5 {[%clk 0:02:28]}  Nc6 {[%clk 0:01:56]} 17. Rd2 {[%clk 0:02:21]}  Rd8 {[%clk 0:01:34]} 18. Rad1 {[%clk 0:02:20]}  Rxd2 {[%clk 0:01:34]} 19. Rxd2 {[%clk 0:02:21]}  Bd7 {[%clk 0:01:24]} 20. Na4 {[%clk 0:02:05]}  Rd8 {[%clk 0:01:21]} 21. Nb6 {[%clk 0:02:02]}  Be8 {[%clk 0:01:20]} 22. Kf1 {[%clk 0:02:00]}  Kf8 {[%clk 0:01:17]} 23. h3 {[%clk 0:01:41]}  Rxd2 {[%clk 0:00:59]} 24. Nxd2 {[%clk 0:01:42]}  Nd7 {[%clk 0:00:56]} 25. Nc8 {[%clk 0:01:37]}  Bf6 {[%clk 0:00:52]} 26. Bxf6 {[%clk 0:01:33]}  Nxf6 {[%clk 0:00:48]} 27. Nc4 {[%clk 0:01:33]}  Bd7 {[%clk 0:00:41]} 28. N8b6 {[%clk 0:01:32]}  Ke7 {[%clk 0:00:40]} 29. Nd6 {[%clk 0:01:32]}  Nd8 {[%clk 0:00:37]} 30. Bf3 {[%clk 0:01:20]}  Bc6 {[%clk 0:00:37]} 31. Bxc6 {[%clk 0:01:20]}  bxc6 {[%clk 0:00:35]} 32. Ke2 {[%clk 0:01:17]}  Nd5 {[%clk 0:00:34]} 33. Ndc8+ {[%clk 0:01:13]}  Ke8 {[%clk 0:00:29]} 34. Nxd5 {[%clk 0:01:04]}  exd5 {[%clk 0:00:27]} 35. g3 {[%clk 0:00:51]}  Kd7 {[%clk 0:00:26]} 36. Nb6+ {[%clk 0:00:51]}  Ke6 {[%clk 0:00:26]} 37. Na4 {[%clk 0:00:51]}  Ke5 {[%clk 0:00:23]} 38. Kd3 {[%clk 0:00:52]}  Ne6 {[%clk 0:00:22]} 39. f4+ {[%clk 0:00:50]}  Kf5 {[%clk 0:00:18]} 40. Ke3 {[%clk 0:00:49]}  f6 {[%clk 0:00:16]} 41. g4+ {[%clk 0:00:48]}  Kg6 {[%clk 0:00:15]} 42. f5+ {[%clk 0:00:49]}  Kf7 {[%clk 0:00:15]} 43. fxe6+ {[%clk 0:00:50]}  Kxe6 {[%clk 0:00:15]} 44. Nc3 {[%clk 0:00:51]}  Ke5 {[%clk 0:00:14]} 45. Ne2 {[%clk 0:00:52]}  g6 {[%clk 0:00:14]} 46. Nd4 {[%clk 0:00:27]}  f5 {[%clk 0:00:14]} 47. gxf5 {[%clk 0:00:27]}  gxf5 {[%clk 0:00:13]} 48. Nxc6+ {[%clk 0:00:28]}  Ke6 {[%clk 0:00:13]} 49. Nd4+ {[%clk 0:00:29]}  Ke5 {[%clk 0:00:13]} 50. Ne2 {[%clk 0:00:29]}  h5 {[%clk 0:00:11]} 51. a4 {[%clk 0:00:29]}  h4 {[%clk 0:00:10]} 52. b5 {[%clk 0:00:29]}  axb5 {[%clk 0:00:09]} 53. axb5 {[%clk 0:00:30]}  f4+ {[%clk 0:00:07]} 54. Nxf4 {[%clk 0:00:30]}  d4+ {[%clk 0:00:07]} 55. Kf3 {[%clk 0:00:31]}  Kf5 {[%clk 0:00:02]} 56. b6 {[%clk 0:00:31]}  Ke5 {[%clk 0:00:02]} 57. b7 {[%clk 0:00:31]} 1-0


[Site "https://www.chess.com"]